[Event "24th Bosnjaci Open 2019"]
[Site "Bosnjaci"]
[Date "2019.01.04"]
[Round "3.22"]
[White "Jergovic, Andrija"]
[Black "Mikic, Ivana"]
[Result "1-0"]
[ECO "C50"]
[WhiteElo "2012"]
[BlackElo "1739"]
[Annotator "NA"]
[PlyCount "81"]
[EventDate "2019.01.03"]
[EventType "swiss"]
[EventCountry "CRO"]
[SourceTitle "playchess.com"]
[Source "ChessBase"]
[SourceQuality "1"]
[TimeControl "5400+30"]

1. e4 {[%emt 0:00:30]} e5 {[%emt 0:00:30]} 2. Nf3 {[%emt 0:00:00]} Nc6 {[%emt 0:00:00]} 3. Bc4 {[%emt 0:01:00]} Bc5 {[%emt 0:00:00]} 4. O-O {[%emt 0:00:30]} Nf6 {[%emt 0:00:30]} 5. d3 {[%emt 0:00:00]} d6 {[%emt 0:00:30]} 6. h3 {[%emt 0:00:00]} a6 {[%emt 0:00:30]} 7. a4 {[%emt 0:00:30]} Ne7 {[%emt 0:01:30]} 8. c3 {[%emt 0:00:30]} Ba7 {[%emt 0:04:30]} 9. Qb3 {[%emt 0:00:30]} O-O {[%emt 0:00:00]} 10. Ng5 {[%emt 0:01:30]} Qe8 {[%emt 0:03:00]} 11. Na3 {[%emt 0:00:00]} h6 {[%emt 0:00:30]} 12. Nf3 {[%emt 0:00:00]} Ng6 {[%emt 0:00:00]} 13. Be3 {[%emt 0:00:30]} Nh5 {[%emt 0:04:00]} 14. Rfe1 {[%emt 0:00:30]} Qe7 {[%emt 0:02:30]} 15. Nc2 {[%emt 0:01:30]} Qf6 {[%emt 0:01:30]} 16. Nh2 {[%emt 0:00:30]} Nhf4 {[%emt 0:09:30]} 17. Rad1 {[%emt 0:08:30]} Nh4 {[%emt 0:04:30]} 18. Bxa7 {[%emt 0:00:30]} Rxa7 {[%emt 0:01:30]} 19. Ne3 {[%emt 0:01:30]} Nfxg2 {[%emt 0:04:30]} 20. Nxg2 {[%emt 0:00:00]} Bxh3 {[%emt 0:00:30]} 21. Nxh4 {[%emt 0:02:00]} Qxh4 {[%emt 0:00:30]} 22. Re3 {[%emt 0:00:30]} Qh5 {[%emt 0:04:30]} 23. Rg3 {[%emt 0:00:30]} Kh8 {[%emt 0:02:30]} 24. Rd2 {[%emt 0:06:30]} f5 {[%emt 0:01:30]} 25. exf5 {[%emt 0:01:30]} Rxf5 {[%emt 0:00:30]} 26. Be6 {[%emt 0:02:30]} Rg5 {[%emt 0:00:30]} 27. Bxh3 {[%emt 0:00:00]} Rxg3+ {[%emt 0:00:30]} 28. fxg3 {[%emt 0:00:00]} Qxh3 {[%emt 0:00:30]} 29. Rg2 {[%emt 0:03:30]} Qf5 {[%emt 0:01:30]} 30. Qd5 {[%emt 0:04:30]} Qg6 {[%emt 0:04:30]} 31. Nf3 {[%emt 0:04:30]} c6 {[%emt 0:01:30]} 32. Qe4 {[%emt 0:01:30]} Qe8 {[%emt 0:01:30]} 33. Nh4 {[%emt 0:00:00]} g5 {[%emt 0:00:30]} 34. Nf3 {[%emt 0:02:00]} b5 {[%emt 0:00:30]} 35. d4 {[%emt 0:02:30]} Re7 {[%emt 0:02:30]} 36. dxe5 {[%emt 0:00:30]} dxe5 {[%emt 0:02:30]} 37. Rh2 {[%emt 0:00:30]} Kg7 {[%emt 0:01:30]} 38. Re2 {[%emt 0:03:30]} Qd7 {[%emt 0:02:30]} 39. Nd4 {[%emt 0:03:30]} Qa7 {[%emt 0:03:30]} 40. Kg2 {[%emt 0:00:30]} Re8 {[%emt 0:01:30]} 41. Nf5+ {[%emt 0:02:30]} 1-0

[Event "24th Bosnjaci Open 2019"]
[Site "Bosnjaci"]
[Date "2019.01.04"]
[Round "3.23"]
[White "Dejanovic, Dragan"]
[Black "Duda, Daniel"]
[Result "0-1"]
[ECO "D37"]
[WhiteElo "1716"]
[BlackElo "1991"]
[Annotator "NA"]
[PlyCount "74"]
[EventDate "2019.01.03"]
[EventType "swiss"]
[EventCountry "CRO"]
[SourceTitle "playchess.com"]
[Source "ChessBase"]
[SourceQuality "1"]
[TimeControl "5400+30"]

1. d4 {[%emt 0:04:30]} d5 {[%emt 0:00:30]} 2. c4 {[%emt 0:00:00]} e6 {[%emt 0:00:00]} 3. Nc3 {[%emt 0:00:00]} Nf6 {[%emt 0:00:00]} 4. Bf4 {[%emt 0:03:30]} c6 {[%emt 0:02:30]} 5. e3 {[%emt 0:01:30]} Nbd7 {[%emt 0:03:30]} 6. Nf3 {[%emt 0:01:30]} Bb4 {[%emt 0:02:30]} 7. Bd3 {[%emt 0:02:30]} dxc4 {[%emt 0:07:30]} 8. Bxc4 {[%emt 0:08:30]} Nd5 {[%emt 0:03:30]} 9. Bxd5 {[%emt 0:02:30]} exd5 {[%emt 0:00:00]} 10. O-O {[%emt 0:00:30]} Nf6 {[%emt 0:02:00]} 11. Qc2 {[%emt 0:15:30]} Bxc3 {[%emt 0:06:30]} 12. bxc3 {[%emt 0:05:30]} O-O {[%emt 0:06:30]} 13. Nd2 {[%emt 0:18:30]} Nh5 {[%emt 0:02:30]} 14. Be5 {[%emt 0:05:30]} f6 {[%emt 0:01:30]} 15. Bg3 {[%emt 0:00:30]} Nxg3 {[%emt 0:02:30]} 16. hxg3 {[%emt 0:00:30]} f5 {[%emt 0:00:30]} 17. Nf3 {[%emt 0:04:30]} Rf6 {[%emt 0:00:30]} 18. Ne5 {[%emt 0:03:36]} Rh6 {[%emt 0:01:30]} 19. f3 {[%emt 0:06:50]} a5 {[%emt 0:04:30]} 20. Kf2 {[%emt 0:03:09]} Qc7 {[%emt 0:01:30]} 21. Rh1 {[%emt 0:02:02]} Rxh1 {[%emt 0:01:30]} 22. Rxh1 {[%emt 0:00:02]} g6 {[%emt 0:00:30]} 23. f4 {[%emt 0:02:22]} b5 {[%emt 0:03:30]} 24. Nf3 {[%emt 0:03:20]} Ra7 {[%emt 0:00:30]} 25. Ng5 {[%emt 0:00:21]} Qd6 {[%emt 0:00:30]} 26. Qc1 {[%emt 0:01:44]} c5 {[%emt 0:00:30]} 27. Rh6 {[%emt 0:00:51]} Re7 {[%emt 0:03:30]} 28. Qh1 {[%emt 0:00:13]} Qc7 {[%emt 0:00:30]} 29. Qd1 {[%emt 0:02:44]} b4 {[%emt 0:03:30]} 30. cxb4 {[%emt 0:01:21]} cxb4 {[%emt 0:00:30]} 31. Qb3 {[%emt 0:00:06]} Qc4 {[%emt 0:00:30]} 32. Rh1 {[%emt 0:00:20]} Ba6 {[%emt 0:03:30]} 33. Re1 {[%emt 0:00:58]} Bb5 {[%emt 0:01:30]} 34. Qb1 {[%emt 0:00:53]} Rc7 {[%emt 0:01:30]} 35. Ne6 {[%emt 0:00:16]} Qc2+ {[%emt 0:00:00]} 36. Kg1 {[%emt 0:00:08]} Qxb1 {[%emt 0:01:00]} 37. Rxb1 {[%emt 0:00:01]} Re7 {[%emt 0:00:30]} 0-1

[Event "24th Bosnjaci Open 2019"]
[Site "Bosnjaci"]
[Date "2019.01.04"]
[Round "3.24"]
[White "Jelic, Slavko"]
[Black "Petricevic, Ivan"]
[Result "1/2-1/2"]
[ECO "A46"]
[WhiteElo "1675"]
[BlackElo "1983"]
[Annotator "NA"]
[PlyCount "48"]
[EventDate "2019.01.03"]
[EventType "swiss"]
[EventCountry "CRO"]
[SourceTitle "playchess.com"]
[Source "ChessBase"]
[SourceQuality "1"]
[TimeControl "5400+30"]

1. d4 {[%emt 0:00:30]} Nf6 {[%emt 0:00:30]} 2. c3 {[%emt 0:00:30]} e6 {[%emt 0:08:30]} 3. Nf3 {[%emt 0:00:30]} c5 {[%emt 0:01:30]} 4. e3 {[%emt 0:01:30]} d5 {[%emt 0:01:30]} 5. Bb5+ {[%emt 0:04:30]} Bd7 {[%emt 0:00:30]} 6. Bxd7+ {[%emt 0:00:00]} Nbxd7 {[%emt 0:00:30]} 7. O-O {[%emt 0:00:00]} Bd6 {[%emt 0:05:30]} 8. Re1 {[%emt 0:01:30]} Ne4 {[%emt 0:01:30]} 9. Nbd2 {[%emt 0:00:30]} f5 {[%emt 0:00:00]} 10. dxc5 {[%emt 0:01:30]} Ndxc5 {[%emt 0:01:00]} 11. Nb3 {[%emt 0:00:30]} O-O {[%emt 0:02:30]} 12. Nxc5 {[%emt 0:02:30]} Nxc5 {[%emt 0:00:30]} 13. Nd4 {[%emt 0:02:30]} Rf6 {[%emt 0:00:30]} 14. g3 {[%emt 0:00:30]} Rh6 {[%emt 0:01:30]} 15. e4 {[%emt 0:00:30]} f4 {[%emt 0:06:30]} 16. e5 {[%emt 0:00:30]} Be7 {[%emt 0:03:30]} 17. Bxf4 {[%emt 0:00:30]} g5 {[%emt 0:00:30]} 18. Bc1 {[%emt 0:01:30]} Qf8 {[%emt 0:01:30]} 19. b4 {[%emt 0:02:30]} Ne4 {[%emt 0:00:30]} 20. Rxe4 {[%emt 0:04:30]} dxe4 {[%emt 0:00:00]} 21. Qg4 {[%emt 0:00:30]} Qf7 {[%emt 0:02:00]} 22. Qxe4 {[%emt 0:00:30]} Rf8 {[%emt 0:00:30]} 23. Be3 {[%emt 0:00:30]} Qh5 {[%emt 0:20:30]} 24. Qg2 {[%emt 0:02:30]} Bd8 {[%emt 0:08:30]} 1/2-1/2